fUSD/lending_fUSD_20250301
["ID","MTS","AMOUNT","RATE_DAILY","PERIOD"]
[354939475,1740834642953,-500.0,0.00027397,2]
[354939476,1740834642962,-500.0,0.00027397,2]
[354939477,1740834642971,-877.44,0.00027397,2]
[354939478,1740834642981,-500.0,0.00027397,2]
[354939479,1740834642990,-500.0,0.00027397,2]
[354939480,1740834642999,-500.0,0.00027397,2]
[354939481,1740834643009,-522.19589493,0.00027397,2]
[354939482,1740834643018,-500.0,0.00027397,2]
[354939483,1740834643028,-786.05,0.00027397,2]
[354939484,1740834643037,-1266.94,0.00027397,2]
[354939485,1740834643047,-2052.82,0.00027397,2]
[354939486,1740834643056,-500.0,0.00027397,2]
[354939487,1740834643066,-545.14,0.00027397,2]
[354939488,1740834643076,-1532.12,0.00027397,2]
[354939489,1740834643086,-500.0,0.00027397,2]
[354939490,1740834643096,-500.0,0.00027397,2]
[354939491,1740834643105,-938.38,0.00027397,2]
[354939492,1740834643114,-500.0,0.00027397,2]
[354939493,1740834643124,-500.0,0.00027397,2]
[354939494,1740834643134,-930.71,0.00027397,2]
[354939495,1740834643144,-500.0,0.00027397,2]
[354939496,1740834643154,-2052.67,0.00027397,2]
[354939497,1740834643163,-922.01,0.00027397,2]
[354939498,1740834643173,-902.25,0.00027397,2]
[354939499,1740834643185,-1042.32,0.00027397,2]
[354939500,1740834643194,-859.34,0.00027397,2]
[354939501,1740834643204,-1392.73,0.00027397,2]
[354939502,1740834643213,-1209.04,0.00027397,2]
[354939503,1740834643223,-594.99736488,0.00027397,2]
[354939504,1740834643233,-809.78,0.00027397,2]
[354939505,1740834643243,-500.0,0.00027397,2]
[354939506,1740834643253,-500.0,0.00027397,2]
[354939507,1740834643262,-500.0,0.00027397,2]
[354939508,1740834643272,-212.7457524,0.00027397,2]
[354939509,1740834643282,-1284.9,0.00027397,2]
[354939510,1740834643292,-500.0,0.00027397,2]
[354939511,1740834643302,-718.22,0.00027397,2]
[354939512,1740834643312,-500.0,0.00027397,2]
[354939513,1740834643322,-500.0,0.00027397,2]
[354939514,1740834643332,-500.0,0.00027397,2]
[354939515,1740834643341,-500.0,0.00027397,2]
[354939516,1740834643351,-788.96,0.00027397,2]
[354939517,1740834643360,-554.70548004,0.00027397,2]
[354939518,1740834643370,-862.97,0.00027397,2]
[354939519,1740834643379,-500.0,0.00027397,2]
[354939520,1740834643389,-1658.02,0.00027397,2]
[354939521,1740834643398,-948.22,0.00027397,2]
[354939522,1740834643408,-500.0,0.00027397,2]
[354939523,1740834643419,-452.53287819,0.00027397,2]
[354939524,1740834643432,-1331.41,0.00027397,2]
[354939525,1740834643442,-633.71,0.00027397,2]
[354939526,1740834643452,-959.72,0.00027397,2]
[354939527,1740834643463,-787.08,0.00027397,2]
[354939528,1740834643472,-1520.91,0.00027397,2]
[354939529,1740834643482,-500.0,0.00027397,2]
[354939530,1740834643491,-500.0,0.00027397,2]
[354939531,1740834643503,-500.0,0.00027397,2]
[354939532,1740834643513,-500.0,0.00027397,2]
[354939533,1740834643523,-1374.77,0.00027397,2]
[354939534,1740834643534,-763.72,0.00027397,2]
[354939535,1740834643544,-500.0,0.00027397,2]
[354939536,1740834643554,-940.01,0.00027397,2]
[354939537,1740834643564,-528.25439823,0.00027397,2]
[354939538,1740834643574,-500.0,0.00027397,2]
[354939539,1740834643583,-1479.11,0.00027397,2]
[354939540,1740834643593,-500.0,0.00027397,2]
[354939541,1740834643603,-1525.98,0.00027397,2]
[354939542,1740834643613,-1509.8,0.00027397,2]
[354939543,1740834643623,-500.0,0.00027397,2]
[354939544,1740834643632,-512.47196518,0.00027397,2]
[354939545,1740834643642,-500.0,0.00027397,2]
[354939546,1740834643652,-500.0,0.00027397,2]
[354939547,1740834643662,-1292.97,0.00027397,2]
[354939548,1740834643671,-1689.41,0.00027397,2]
[354939549,1740834643681,-500.0,0.00027397,2]
[354939550,1740834643691,-2276.81,0.00027397,2]
[354939551,1740834643701,-500.0,0.00027397,2]
[354939552,1740834643710,-500.0,0.00027397,2]
[354939553,1740834643719,-500.0,0.00027397,2]
[354939554,1740834643729,-805.1,0.00027397,2]
[354939555,1740834643739,-500.0,0.00027397,2]
[354939556,1740834643749,-902.85,0.00027397,2]
[354939557,1740834643758,-518.36516558,0.00027397,2]
[354939558,1740834643768,-500.0,0.00027397,2]
[354939559,1740834643778,-922.82,0.00027397,2]
[354939560,1740834643787,-828.66,0.00027397,2]
[354939561,1740834643796,-765.57,0.00027397,2]
[354939562,1740834643806,-500.0,0.00027397,2]
[354939563,1740834643815,-3607.28,0.00027397,2]
[354939564,1740834643825,-1134.35,0.00027397,2]
[354939565,1740834643835,-500.0,0.00027397,2]
[354939566,1740834643846,-500.0,0.00027397,2]
[354939567,1740834643856,-500.0,0.00027397,2]
[354939568,1740834643866,-500.0,0.00027397,2]
[354939569,1740834643875,-500.0,0.00027397,2]
[354939570,1740834643885,-500.0,0.00027397,2]
[354939571,1740834643894,-500.0,0.00027397,2]
[354939572,1740834643905,-500.0,0.00027397,2]
[354939573,1740834643915,-1229.83,0.00027397,2]
[354939574,1740834643925,-697.54,0.00027397,2]
[354939575,1740834643937,-500.0,0.00027397,2]
[354939576,1740834643948,-500.0,0.00027397,2]
[354939577,1740834643957,-500.0,0.00027397,2]
[354939578,1740834643968,-521.89858303,0.00027397,2]
[354939579,1740834643978,-532.66165963,0.00027397,2]
[354939580,1740834643988,-1018.72,0.00027397,2]
[354939581,1740834643997,-1864.18,0.00027397,2]
[354939582,1740834644008,-2050.5,0.00027397,2]
[354939583,1740834644018,-500.0,0.00027397,2]
[354939584,1740834644028,-1393.46,0.00027397,2]
[354939585,1740834644038,-1052.36,0.00027397,2]
[354939586,1740834644049,-1527.8,0.00027397,2]
[354939587,1740834644059,-1488.8,0.00027397,2]
[354939588,1740834644069,-172.65019657,0.00027397,2]
[354939589,1740834644281,-500.0,0.00027397,2]
[354939590,1740834644293,-1007.67,0.00027397,2]
[354939591,1740834644303,-2157.06,0.00027397,2]
[354939592,1740834644313,-4998.4,0.00027397,2]
[354939593,1740834644323,-500.0,0.00027397,2]
[354939594,1740834644334,-931.01,0.00027397,2]
[354939595,1740834644344,-1092.84,0.00027397,2]
[354939596,1740834644354,-522.83689128,0.00027397,2]
[354939597,1740834644365,-1046.13,0.00027397,2]
[354939598,1740834644376,-500.0,0.00027397,2]
[354939599,1740834644386,-1996.24,0.00027397,2]
[354939600,1740834644396,-359.52142529,0.00027397,2]
[354939601,1740834644406,-763.15,0.00027397,2]
[354939602,1740834644417,-500.0,0.00027397,2]
[354939603,1740834644430,-500.0,0.00027397,2]
[354939604,1740834644440,-2146.56,0.00027397,2]
[354939605,1740834644450,-1081.11,0.00027397,2]
[354939606,1740834644461,-510.3,0.00027397,2]
[354939607,1740834644471,-1193.29,0.00027397,2]
[354939608,1740834644480,-1465.89,0.00027397,2]
[354939609,1740834644490,-500.0,0.00027397,2]
[354939610,1740834644502,-500.0,0.00027397,2]
[354939611,1740834644512,-974.56,0.00027397,2]
[354939612,1740834644522,-509.66,0.00027397,2]
[354939613,1740834644531,-800.1,0.00027397,2]
[354939614,1740834644541,-500.0,0.00027397,2]
[354939615,1740834644551,-500.0,0.00027397,2]
[354939616,1740834644560,-500.0,0.00027397,2]
[354939617,1740834644570,-848.89,0.00027397,2]
[354939618,1740834644580,-1645.73,0.00027397,2]
[354939619,1740834644590,-791.63,0.00027397,2]
[354939620,1740834644599,-1100.35,0.00027397,2]
[354939621,1740834644608,-1722.26,0.00027397,2]
[354939622,1740834644618,-2081.23,0.00027397,2]
[354939623,1740834644628,-1310.15,0.00027397,2]
[354939624,1740834644638,-8435.42,0.00027397,2]
[354939625,1740834644647,-500.0,0.00027397,2]
[354939626,1740834644657,-937.21,0.00027397,2]
[354939627,1740834644666,-2594.74,0.00027397,2]
[354939628,1740834644676,-908.32,0.00027397,2]
[354939629,1740834644687,-500.0,0.00027397,2]
[354939630,1740834644697,-500.0,0.00027397,2]
[354939631,1740834644706,-500.0,0.00027397,2]
[354939632,1740834644716,-2963.06,0.00027397,2]
[354939633,1740834644725,-1517.83,0.00027397,2]
[354939634,1740834644735,-898.1,0.00027397,2]
[354939635,1740834644744,-500.0,0.00027397,2]
[354939636,1740834644753,-2269.82,0.00027397,2]
[354939637,1740834644762,-1039.54,0.00027397,2]
[354939638,1740834644772,-1318.45,0.00027397,2]
[354939639,1740834644781,-500.0,0.00027397,2]
[354939640,1740834644791,-847.46,0.00027397,2]
[354939641,1740834644801,-500.0,0.00027397,2]
[354939642,1740834644811,-2535.24,0.00027397,2]
[354939643,1740834644821,-506.46250044,0.00027397,2]
[354939644,1740834644831,-525.20983918,0.00027397,2]
[354939645,1740834644841,-2713.24,0.00027397,2]
[354939646,1740834644850,-1042.57,0.00027397,2]
[354939647,1740834644860,-1993.1,0.00027397,2]
[354939648,1740834644870,-1293.02,0.00027397,2]
[354939649,1740834644880,-500.0,0.00027397,2]
[354939650,1740834644890,-500.0,0.00027397,2]
[354939651,1740834644899,-500.0,0.00027397,2]
[354939652,1740834644909,-500.0,0.00027397,2]
[354939653,1740834644918,-500.0,0.00027397,2]
[354939654,1740834644928,-811.32,0.00027397,2]
[354939655,1740834644938,-734.58,0.00027397,2]
[354939656,1740834644948,-500.0,0.00027397,2]
[354939657,1740834644958,-679.95,0.00027397,2]
[354939658,1740834644968,-783.73,0.00027397,2]
[354939659,1740834644977,-500.0,0.00027397,2]
[354939660,1740834644986,-500.0,0.00027397,2]
[354939661,1740834644996,-376.08636696,0.00027397,2]
[354939662,1740834645006,-793.19,0.00027397,2]
[354939663,1740834645015,-500.0,0.00027397,2]
[354939664,1740834645025,-500.0,0.00027397,2]
[354939665,1740834645034,-433.17176866,0.00027397,2]
[354939666,1740834645044,-41151.21,0.00027397,2]
[354939667,1740834645054,-1905.98,0.00027397,2]
[354939668,1740834645064,-13256.81,0.00027397,2]
[354939669,1740834645073,-1102.26,0.00027397,2]
[354939670,1740834645083,-525.30578288,0.00027397,2]
[354939671,1740834645093,-2803.64,0.00027397,2]
[354939672,1740834645103,-500.0,0.00027397,2]
[354939673,1740834645113,-3267.64,0.00027397,2]
[354939674,1740834645123,-500.0,0.00027397,2]
[354939675,1740834645132,-1577.47,0.00027397,2]
[354939676,1740834645142,-500.0,0.00027397,2]
[354939677,1740834645151,-2196.19,0.00027397,2]
[354939678,1740834645162,-500.0,0.00027397,2]
[354939679,1740834645171,-1803.45802884,0.00027397,2]
[354939680,1740834645228,-112.66197116,0.00027397,2]
[354939681,1740834645238,-500.0,0.00027397,2]
[354939682,1740834645248,-500.0,0.00027397,2]
[354939683,1740834645257,-231.56532884,0.00027397,2]
[354939688,1740834645797,-268.43467116,0.00027397,2]
[354939689,1740834645807,-1492.68,0.00027397,2]
[354939690,1740834645817,-500.0,0.00027397,2]
[354939691,1740834645827,-500.0,0.00027397,2]
[354939692,1740834645837,-500.0,0.00027397,2]
[354939693,1740834645847,-500.0,0.00027397,2]
[354939694,1740834645858,-500.0,0.00027397,2]
[354939695,1740834645868,-917.87344225,0.00027397,2]
[354939696,1740834645977,-176.26655775,0.00027397,2]
[354939697,1740834645987,-643.6,0.00027397,2]
[354939698,1740834645996,-128.22745956,0.00027397,2]
[354939699,1740834646012,-711.63254044,0.00027397,2]
[354939700,1740834646022,-517.67078747,0.00027397,2]
[354939701,1740834646032,-442.98237177,0.00027397,2]
[354939702,1740834646044,-1045.76762823,0.00027397,2]
[354939703,1740834646054,-500.0,0.00027397,2]
[354939704,1740834646064,-2569.7,0.00027397,2]
[354939705,1740834646073,-1711.48717598,0.00027397,2]
[354939706,1740834646085,-843.59282402,0.00027397,2]
[354939707,1740834646095,-569.72,0.00027397,2]
[354939708,1740834646104,-500.0,0.00027397,2]
[354939709,1740834646113,-500.0,0.00027397,2]
[354939710,1740834646123,-2130.92,0.00027397,2]
[354939711,1740834646132,-500.0,0.00027397,2]
[354939712,1740834646142,-5602.02,0.00027397,2]
[354939713,1740834646152,-1227.86,0.00027397,2]
[354939714,1740834646161,-2707.16,0.00027397,2]
[354939716,1740834646171,-2912.94,0.00027397,2]
[354939717,1740834646181,-740.24,0.00027397,2]
[354939720,1740834646191,-500.0,0.00027397,2]
[354939721,1740834646200,-1183.21,0.00027397,2]
[354939723,1740834646210,-2206.39,0.00027397,2]
[354939725,1740834646220,-950.12,0.00027397,2]
[354939727,1740834646230,-500.0,0.00027397,2]
[354939729,1740834646239,-500.0,0.00027397,2]
[354939731,1740834646249,-500.0,0.00027397,2]
[354939734,1740834646259,-500.0,0.00027397,2]
[354939735,1740834646269,-500.0,0.00027397,2]
[354939739,1740834646279,-500.0,0.00027397,2]
[354939742,1740834646289,-500.0,0.00027397,2]
[354939745,1740834646299,-500.0,0.00027397,2]
[354939747,1740834646309,-500.0,0.00027397,2]
[354939749,1740834646319,-1334.63,0.00027397,2]
[354939759,1740834646410,-2672.08,0.00027397,2]
[354939761,1740834646423,-2005.63,0.00027397,2]
[354939763,1740834646433,-500.0,0.00027397,2]
[354939765,1740834646443,-808.23,0.00027397,2]
[354939767,1740834646453,-500.0,0.00027397,2]
[354939769,1740834646462,-2630.71,0.00027397,2]
[354939771,1740834646471,-500.0,0.00027397,2]
[354939772,1740834646481,-500.0,0.00027397,2]
[354939773,1740834646490,-881.64,0.00027397,2]
[354939774,1740834646500,-2786.69,0.00027397,2]
[354939775,1740834646510,-846.34,0.00027397,2]
[354939776,1740834646519,-1826.59,0.00027397,2]
[354939777,1740834646529,-500.0,0.00027397,2]
[354939778,1740834646538,-500.0,0.00027397,2]
[354939779,1740834646547,-500.0,0.00027397,2]
[354939780,1740834646556,-521.83,0.00027397,2]
[354939781,1740834646565,-1166.57,0.00027397,2]
[354939782,1740834646576,-789.54,0.00027397,2]
[354939783,1740834646587,-500.0,0.00027397,2]
[354939784,1740834646597,-500.0,0.00027397,2]
[354939785,1740834646607,-599.14,0.00027397,2]
[354939786,1740834646616,-500.0,0.00027397,2]
[354939787,1740834646625,-500.0,0.00027397,2]
[354939788,1740834646634,-6887.13,0.00027397,2]
[354939789,1740834646643,-515.41391976,0.00027397,2]
[354939790,1740834646652,-500.0,0.00027397,2]
[354939791,1740834646661,-1759.95,0.00027397,2]
[354939792,1740834646670,-1181.64,0.00027397,2]
[354939793,1740834646680,-1698.82,0.00027397,2]
[354939794,1740834646689,-837.07,0.00027397,2]
[354939795,1740834646698,-2193.08,0.00027397,2]
[354939796,1740834646707,-716.68,0.00027397,2]
[354939797,1740834646716,-951.31,0.00027397,2]
[354939798,1740834646725,-2561.12,0.00027397,2]
[354939799,1740834646734,-3755.41,0.00027397,2]
[354939800,1740834646743,-1624.02,0.00027397,2]
[354939801,1740834646753,-13315.81762786,0.00027397,2]
[354939802,1740834646769,-19287.05237214,0.00027397,2]
[354939803,1740834646779,-959.77,0.00027397,2]
[354939804,1740834646789,-500.0,0.00027397,2]
[354939805,1740834646798,-500.0,0.00027397,2]
[354939806,1740834646807,-2745.79,0.00027397,2]
[354939807,1740834646817,-500.0,0.00027397,2]
[354939808,1740834646827,-791.26,0.00027397,2]
[354939809,1740834646836,-500.0,0.00027397,2]
[354939810,1740834646845,-621.04,0.00027397,2]
[354939811,1740834646855,-500.0,0.00027397,2]
[354939812,1740834646864,-1447.84,0.00027397,2]
[354939813,1740834646873,-995.66,0.00027397,2]
[354939814,1740834646883,-1149.85,0.00027397,2]
[354939815,1740834646892,-1778.48,0.00027397,2]
[354939816,1740834646901,-526.11,0.00027397,120]
[354939817,1740834646911,-1257.97,0.00027397,2]
[354939818,1740834646920,-500.0,0.00027397,2]
[354939819,1740834646930,-1704.45,0.00027397,2]
[354939820,1740834646939,-767.46,0.00027397,2]
[354939821,1740834646949,-5661.2,0.00027397,2]
[354939822,1740834646958,-500.0,0.00027397,2]
[354939823,1740834646968,-664.86,0.00027397,2]
[354939824,1740834646978,-500.0,0.00027397,2]
[354939825,1740834646987,-500.0,0.00027397,2]
[354939826,1740834646997,-678.24,0.00027397,2]
[354939827,1740834647006,-2143.44,0.00027397,2]
[354939828,1740834647016,-500.0,0.00027397,2]
[354939829,1740834647026,-500.0,0.00027397,2]
[354939830,1740834647036,-1372.56,0.00027397,2]
[354939831,1740834647045,-500.0,0.00027397,2]
[354939832,1740834647055,-1794.32,0.00027397,2]
[354939833,1740834647064,-641.8,0.00027397,2]
[354939834,1740834647074,-1807.59,0.00027397,2]
[354939835,1740834647083,-500.0,0.00027397,2]
[354939836,1740834647093,-717.21,0.00027397,2]
[354939837,1740834647102,-531.58019116,0.00027397,2]
[354939838,1740834647111,-1726.14,0.00027397,2]
[354939839,1740834647121,-681.22,0.00027397,2]
[354939840,1740834647131,-1579.41,0.00027397,2]
[354939841,1740834647140,-513.97292895,0.00027397,2]
[354939842,1740834647149,-500.0,0.00027397,2]
[354939843,1740834647158,-500.0,0.00027397,2]
[354939844,1740834647168,-23579.96,0.00027397,2]
[354939845,1740834647178,-500.0,0.00027397,2]
[354939846,1740834647188,-500.0,0.00027397,2]
[354939847,1740834647198,-863.97,0.00027397,2]
[354939848,1740834647207,-728.47,0.00027397,2]
[354939849,1740834647217,-1366.57,0.00027397,2]
[354939850,1740834647227,-426.60554872,0.00027397,2]
[354939851,1740834647236,-7836.19,0.00027397,2]
[354939852,1740834647246,-500.0,0.00027397,2]
[354939853,1740834647255,-1314.32,0.00027397,2]
[354939854,1740834647264,-1324.83,0.00027397,2]
[354939855,1740834647274,-500.0,0.00027397,2]
[354939856,1740834647283,-500.0,0.00027397,2]
[354939857,1740834647293,-6872.96,0.00027397,2]
[354939858,1740834647302,-500.0,0.00027397,2]
[354939859,1740834647311,-500.0,0.00027397,2]
[354939860,1740834647321,-1937.22,0.00027397,2]
[354939861,1740834647330,-1404.1,0.00027397,2]
[354939862,1740834647339,-825.04,0.00027397,2]
[354939863,1740834647348,-500.0,0.00027397,2]
[354939864,1740834647358,-681.4,0.00027397,2]
[354939865,1740834647367,-2085.26,0.00027397,2]
[354939866,1740834647377,-500.0,0.00027397,2]
[354939867,1740834647386,-1080.78,0.00027397,2]
[354939868,1740834647395,-500.0,0.00027397,2]
[354939869,1740834647405,-500.0,0.00027397,2]
[354939870,1740834647415,-500.0,0.00027397,2]
[354939871,1740834647428,-980.78,0.00027397,2]
[354939872,1740834647438,-1078.19,0.00027397,2]
[354939873,1740834647447,-633.94,0.00027397,2]
[354939874,1740834647457,-500.0,0.00027397,2]
[354939875,1740834647469,-500.0,0.00027397,2]
[354939876,1740834647478,-1848.83,0.00027397,2]
[354939877,1740834647488,-422.25470135,0.00027397,2]
[354939878,1740834647498,-1916.89,0.00027397,2]
[354939879,1740834647508,-500.0,0.00027397,2]
[354939880,1740834647518,-514.85222064,0.00027397,2]
[354939881,1740834647528,-500.0,0.00027397,2]
[354939882,1740834647537,-595.95,0.00027397,2]
[354939883,1740834647547,-500.0,0.00027397,2]
[354939884,1740834647556,-536.79,0.00027397,2]
[354939885,1740834647565,-1242.21,0.00027397,2]
[354939886,1740834647575,-500.0,0.00027397,2]
[354939887,1740834647584,-12030.21,0.00027397,2]
[354939888,1740834647594,-786.79,0.00027397,2]
[354939889,1740834647604,-1160.85,0.00027397,2]
[354939890,1740834647614,-3189.83,0.00027397,2]
[354939891,1740834647624,-2024.82252025,0.00027521,4]
[354939892,1740834647634,-83702.9079,0.00027571,2]
[354939893,1740834647645,-197.69803234,0.00027571,2]
[354939894,1740834647655,-162.3975038,0.00027571,2]
[354939895,1740834647665,-69580.58526823,0.00027671,5]
[354939896,1740834649177,-768.09376526,0.00027671,5]
[354939897,1740834649612,-830.12969053,0.00027671,5]
[354939898,1740834649718,-8679.6,0.00027671,5]
[354939899,1740834649731,-20141.59127598,0.00027671,5]
[354939900,1740834649741,-363.0,0.00027671,5]
[354939901,1740834649751,-500.0,0.00027671,2]
[354939902,1740834649761,-500.0,0.00027671,2]
[354939903,1740834649771,-500.0,0.00027671,2]
[354939904,1740834649781,-500.0,0.00027671,2]
[354939905,1740834649791,-1122.59,0.00027671,2]
[354939906,1740834649801,-515.89804043,0.00027671,2]
[354939907,1740834649811,-500.0,0.00027671,2]
[354939908,1740834649823,-1050.17,0.00027671,2]
[354939909,1740834649833,-512.63564118,0.00027671,2]
[354939910,1740834649843,-500.0,0.00027671,2]
[354939911,1740834649854,-1262.3,0.00027671,2]
[354939912,1740834649863,-500.0,0.00027671,2]
[354939913,1740834649874,-500.0,0.00027671,2]
[354939914,1740834649884,-1485.11,0.00027671,2]
[354939915,1740834649894,-500.0,0.00027671,2]
[354939916,1740834649903,-500.0,0.00027671,2]
[354939917,1740834649913,-506.35251696,0.00027671,2]
[354939918,1740834649923,-500.0,0.00027671,2]
[354939919,1740834649932,-722.89,0.00027671,2]
[354939920,1740834649943,-1069.95,0.00027671,2]
[354939921,1740834649953,-869.72,0.00027671,2]
[354939922,1740834649963,-500.0,0.00027671,2]
[354939923,1740834649972,-500.0,0.00027671,2]
[354939924,1740834649982,-700.98,0.00027671,2]
[354939925,1740834649992,-500.0,0.00027671,2]
[354939926,1740834650001,-500.0,0.00027671,2]
[354939927,1740834650011,-500.0,0.00027671,2]
[354939928,1740834650021,-848.06,0.00027671,2]
[354939929,1740834650030,-500.0,0.00027671,2]
[354939930,1740834650040,-500.0,0.00027671,2]
[354939931,1740834650050,-801.09,0.00027671,2]
[354939932,1740834650231,-500.0,0.00027671,2]
[354939933,1740834650281,-683.5,0.00027671,2]
[354939934,1740834650296,-500.0,0.00027671,2]
[354939935,1740834650306,-500.0,0.00027671,2]
[354939936,1740834650315,-500.0,0.00027671,2]
[354939937,1740834650325,-509.73479872,0.00027671,2]
[354939938,1740834650334,-500.0,0.00027671,2]
[354939939,1740834650344,-529.2037662,0.00027671,2]
[354939940,1740834650353,-500.0,0.00027671,2]
[354939941,1740834650362,-1163.18,0.00027671,2]
[354939942,1740834650371,-500.0,0.00027671,2]
[354939943,1740834650380,-937.84,0.00027671,2]
[354939944,1740834650389,-500.0,0.00027671,2]
[354939945,1740834650398,-500.0,0.00027671,2]
[354939946,1740834650407,-500.0,0.00027671,2]
[354939947,1740834650420,-788.5,0.00027671,2]
[354939948,1740834650430,-500.0,0.00027671,2]
[354939949,1740834650439,-500.0,0.00027671,2]
[354939950,1740834650449,-281.31223617,0.00027671,2]
[354939951,1740834650459,-500.0,0.00027671,2]
[354939952,1740834650468,-686.73,0.00027671,2]
[354939953,1740834650477,-1061.0,0.00027671,2]
[354939954,1740834650486,-500.0,0.00027671,2]
[354939955,1740834650497,-500.0,0.00027671,2]
[354939956,1740834650506,-2997.225029,0.00027671,2]
[354939957,1740834650515,-824.97,0.00027671,2]
[354939958,1740834650525,-1284.68,0.00027671,2]
[354939959,1740834650534,-500.0,0.00027671,2]
[354939960,1740834650543,-500.0,0.00027671,2]
[354939961,1740834650552,-3886.106056,0.00027671,2]
[354939962,1740834650561,-689.77,0.00027671,2]
[354939963,1740834650570,-500.0,0.00027671,2]
[354939964,1740834650580,-522.63526021,0.00027671,2]
[354939965,1740834650589,-1990.13,0.00027671,2]
[354939966,1740834650598,-500.0,0.00027671,2]
[354939967,1740834650607,-500.0,0.00027671,2]
[354939968,1740834650616,-500.0,0.00027671,2]
[354939969,1740834650625,-150.369306,0.00027671,2]
[354939970,1740834650634,-500.0,0.00027671,2]
[354939971,1740834650643,-364.10711461,0.00027671,2]
[354939972,1740834650652,-2057.92,0.00027671,2]
[354939973,1740834650661,-500.0,0.00027671,2]
[354939974,1740834650671,-500.0,0.00027671,2]
[354939975,1740834650680,-500.0,0.00027671,2]
[354939976,1740834650689,-500.0,0.00027671,2]
[354939977,1740834650699,-179.50547837,0.00027671,2]
[354939978,1740834650708,-951.2,0.00027671,2]
[354939979,1740834650718,-500.0,0.00027671,2]
[354939980,1740834650727,-808.56,0.00027671,2]
[354939981,1740834650737,-500.0,0.00027671,2]
[354939982,1740834650749,-711.28,0.00027671,2]
[354939983,1740834650759,-719.43,0.00027671,2]
[354939984,1740834650769,-500.0,0.00027671,2]
[354939985,1740834650779,-919.48,0.00027671,2]
[354939986,1740834650788,-1000.02,0.00027671,2]
[354939987,1740834650798,-989.13,0.00027671,2]
[354939988,1740834650807,-500.0,0.00027671,2]
[354939989,1740834650816,-500.0,0.00027671,2]
[354939990,1740834650826,-500.0,0.00027671,2]
[354939991,1740834650836,-500.0,0.00027671,2]
[354939992,1740834650845,-775.18,0.00027671,2]
[354939993,1740834650855,-480.82962797,0.00027671,2]
[354939994,1740834650864,-1048.65,0.00027671,2]
[354939995,1740834650874,-593.12700432,0.00027671,2]
[354939996,1740834650883,-500.0,0.00027671,2]
[354939997,1740834650897,-500.0,0.00027671,2]
[354939998,1740834650906,-500.0,0.00027671,2]
[354939999,1740834650916,-1739.04,0.00027671,2]
[354940000,1740834650925,-500.0,0.00027671,2]
[354940001,1740834650936,-901.37,0.00027671,2]
[354940002,1740834650945,-500.0,0.00027671,2]
[354940003,1740834650955,-789.7,0.00027671,2]
[354940004,1740834650965,-500.0,0.00027671,2]
[354940005,1740834650974,-500.0,0.00027671,2]
[354940006,1740834650983,-1709.34,0.00027671,2]
[354940007,1740834650993,-579.21480936,0.00027671,2]
[354940008,1740834651002,-3413.35,0.00027671,2]
[354940009,1740834651012,-936.71,0.00027671,2]
[354940010,1740834651023,-500.0,0.00027671,2]
[354940011,1740834651036,-1008.85,0.00027671,2]
[354940012,1740834651045,-223.09313831,0.00027671,2]